fUSD/lending_fUSD_20250720
["ID","MTS","AMOUNT","RATE_DAILY","PERIOD"]
[373575500,1753049452907,-619.1,0.00019287,2]
[373575501,1753049452914,-480.0,0.00019287,2]
[373575502,1753049452923,-480.0,0.00019287,2]
[373575503,1753049452932,-151.0,0.00019287,2]
[373575504,1753049452944,-619.04914737,0.00019287,2]
[373575505,1753049452953,-480.0,0.00019287,2]
[373575506,1753049452962,-158.838497,0.00019287,2]
[373575507,1753049452971,-480.0,0.00019287,2]
[373575508,1753049452980,-480.0,0.00019287,2]
[373575509,1753049452991,-480.0,0.00019287,2]
[373575510,1753049452999,-480.0,0.00019287,2]
[373575511,1753049453009,-480.0,0.00019287,2]
[373575512,1753049453019,-677.99,0.00019287,2]
[373575513,1753049453028,-1280.16,0.00019287,2]
[373575514,1753049453037,-490.63,0.00019287,2]
[373575515,1753049453046,-480.0,0.00019287,2]
[373575516,1753049453055,-480.0,0.00019287,2]
[373575517,1753049453064,-480.0,0.00019287,2]
[373575518,1753049453073,-151.0,0.00019287,2]
[373575519,1753049453082,-151.0,0.00019287,2]
[373575520,1753049453091,-151.0,0.00019287,2]
[373575521,1753049453101,-151.0,0.00019287,2]
[373575522,1753049453110,-1281.5,0.00019287,2]
[373575523,1753049453120,-480.0,0.00019287,2]
[373575524,1753049453129,-151.0,0.00019287,2]
[373575525,1753049453138,-151.0,0.00019287,2]
[373575526,1753049453147,-480.0,0.00019287,2]
[373575527,1753049453155,-151.0,0.00019287,2]
[373575528,1753049453164,-151.0,0.00019287,2]
[373575529,1753049453173,-151.0,0.00019287,2]
[373575530,1753049453182,-151.0,0.00019287,2]
[373575531,1753049453190,-803.15,0.00019287,2]
[373575532,1753049453199,-491.06,0.00019287,2]
[373575533,1753049453208,-151.0,0.00019287,2]
[373575534,1753049453217,-480.0,0.00019287,2]
[373575535,1753049453227,-480.0,0.00019287,2]
[373575536,1753049453236,-480.0,0.00019287,2]
[373575537,1753049453245,-480.0,0.00019287,2]
[373575538,1753049453255,-480.0,0.00019287,2]
[373575539,1753049453264,-480.0,0.00019287,2]
[373575540,1753049453274,-480.0,0.00019287,2]
[373575541,1753049453284,-480.0,0.00019287,2]
[373575542,1753049453294,-480.0,0.00019287,2]
[373575543,1753049453303,-480.0,0.00019287,2]
[373575544,1753049453313,-1423.62,0.00019287,2]
[373575545,1753049453323,-1127.37,0.00019287,2]
[373575546,1753049453332,-480.0,0.00019287,2]
[373575547,1753049453341,-480.0,0.00019287,2]
[373575548,1753049453349,-440.0,0.00019287,2]
[373575549,1753049453359,-480.0,0.00019287,2]
[373575550,1753049453369,-1189.08,0.00019287,2]
[373575551,1753049453378,-480.0,0.00019287,2]
[373575552,1753049453388,-151.0,0.00019287,2]
[373575553,1753049453398,-151.0,0.00019287,2]
[373575554,1753049453408,-151.0,0.00019287,2]
[373575555,1753049453418,-152.256073,0.00019287,2]
[373575556,1753049453427,-480.0,0.00019287,2]
[373575557,1753049453437,-480.0,0.00019287,2]
[373575558,1753049453447,-818.3,0.00019287,2]
[373575559,1753049453457,-480.0,0.00019287,2]
[373575560,1753049453466,-151.0,0.00019287,2]
[373575561,1753049453476,-480.0,0.00019287,2]
[373575562,1753049453495,-151.0,0.00019287,2]
[373575563,1753049453507,-929.08,0.00019287,2]
[373575564,1753049453517,-480.0,0.00019287,2]
[373575565,1753049453527,-151.0,0.00019287,2]
[373575566,1753049453537,-480.0,0.00019287,2]
[373575567,1753049453547,-480.0,0.00019287,2]
[373575568,1753049453557,-480.0,0.00019287,2]
[373575569,1753049453566,-151.0,0.00019287,2]
[373575570,1753049453576,-151.0,0.00019287,2]
[373575571,1753049453586,-480.0,0.00019287,2]
[373575572,1753049453596,-480.0,0.00019287,2]
[373575573,1753049453606,-1332.65,0.00019287,2]
[373575574,1753049453615,-651.66,0.00019287,2]
[373575575,1753049453625,-480.0,0.00019287,2]
[373575576,1753049453635,-480.0,0.00019287,2]
[373575577,1753049453645,-1372.4,0.00019287,2]
[373575578,1753049453654,-480.0,0.00019287,2]
[373575579,1753049453664,-480.0,0.00019287,2]
[373575580,1753049453674,-480.0,0.00019287,2]
[373575581,1753049453684,-1052.2,0.00019287,2]
[373575582,1753049453693,-1002.05,0.00019287,2]
[373575583,1753049453703,-4461.96,0.00019287,2]
[373575584,1753049453713,-290.73149474,0.00019287,2]
[373575585,1753049453724,-480.0,0.00019287,2]
[373575586,1753049453734,-480.0,0.00019287,2]
[373575587,1753049453746,-480.0,0.00019287,2]
[373575588,1753049453756,-480.0,0.00019287,2]
[373575589,1753049453766,-480.0,0.00019287,2]
[373575590,1753049453775,-480.0,0.00019287,2]
[373575591,1753049453786,-480.0,0.00019287,2]
[373575592,1753049453795,-566.27,0.00019287,2]
[373575593,1753049453806,-480.0,0.00019287,2]
[373575594,1753049453815,-480.0,0.00019287,2]
[373575595,1753049453825,-480.0,0.00019287,2]
[373575596,1753049453835,-480.0,0.00019287,2]
[373575597,1753049453845,-480.0,0.00019287,2]
[373575598,1753049453855,-752.27,0.00019287,2]
[373575599,1753049453865,-539.59,0.00019287,2]
[373575600,1753049453875,-480.0,0.00019287,2]
[373575601,1753049453886,-480.0,0.00019287,2]
[373575602,1753049453896,-480.0,0.00019287,2]
[373575603,1753049453905,-480.0,0.00019287,2]
[373575604,1753049453914,-561.38,0.00019287,2]
[373575605,1753049453924,-1395.7,0.00019287,2]
[373575606,1753049453934,-480.0,0.00019287,2]
[373575607,1753049453946,-650.47,0.00019287,2]
[373575608,1753049453956,-1360.34,0.00019287,2]
[373575609,1753049453966,-480.0,0.00019287,2]
[373575610,1753049453976,-153.461469,0.00019287,2]
[373575611,1753049453986,-153.461469,0.00019287,2]
[373575612,1753049453998,-153.461469,0.00019287,2]
[373575613,1753049454008,-153.461469,0.00019287,2]
[373575614,1753049454019,-480.0,0.00019287,2]
[373575615,1753049454030,-423.9919841,0.00019287,2]
[373575616,1753049454040,-670.5,0.00019287,2]
[373575617,1753049454050,-153.461469,0.00019287,2]
[373575618,1753049454060,-480.0,0.00019287,2]
[373575619,1753049454071,-601.03395971,0.00019287,2]
[373575620,1753049454080,-153.461469,0.00019287,2]
[373575621,1753049454092,-153.461469,0.00019287,2]
[373575622,1753049454102,-153.461469,0.00019287,2]
[373575623,1753049454112,-686.59,0.00019287,2]
[373575624,1753049454122,-1451.57,0.00019287,2]
[373575625,1753049454132,-861.21,0.00019287,2]
[373575626,1753049454142,-480.0,0.00019287,2]
[373575627,1753049454152,-480.0,0.00019287,2]
[373575628,1753049454162,-443.07557739,0.00019287,2]
[373575629,1753049454171,-480.0,0.00019287,2]
[373575630,1753049454181,-480.0,0.00019287,2]
[373575631,1753049454191,-151.0,0.00019287,2]
[373575632,1753049454201,-151.0,0.00019287,2]
[373575633,1753049454212,-864.82,0.00019287,2]
[373575634,1753049454222,-151.0,0.00019287,2]
[373575635,1753049454232,-151.0,0.00019287,2]
[373575636,1753049454242,-480.0,0.00019287,2]
[373575637,1753049454252,-151.0,0.00019287,2]
[373575638,1753049454262,-480.0,0.00019287,2]
[373575639,1753049454272,-151.0,0.00019287,2]
[373575640,1753049454282,-151.0,0.00019287,2]
[373575641,1753049454292,-151.0,0.00019287,2]
[373575642,1753049454302,-151.0,0.00019287,2]
[373575643,1753049454317,-222.825683,0.00019287,2]
[373575644,1753049454327,-480.0,0.00019287,2]
[373575645,1753049454337,-480.0,0.00019287,2]
[373575646,1753049454347,-493.51,0.00019287,2]
[373575647,1753049454356,-480.0,0.00019287,2]
[373575648,1753049454367,-151.0,0.00019287,2]
[373575649,1753049454377,-151.0,0.00019287,2]
[373575650,1753049454387,-151.0,0.00019287,2]
[373575651,1753049454397,-284.914605,0.00019287,2]
[373575652,1753049454407,-668.84,0.00019287,2]
[373575653,1753049454419,-480.0,0.00019287,2]
[373575654,1753049454429,-480.0,0.00019287,2]
[373575655,1753049454439,-259.374226,0.00019287,2]
[373575656,1753049454448,-480.0,0.00019287,2]
[373575657,1753049454459,-480.0,0.00019287,2]
[373575658,1753049454469,-966.59,0.00019287,2]
[373575659,1753049454479,-286.27396728,0.00019287,2]
[373575660,1753049454489,-480.0,0.00019287,2]
[373575661,1753049454500,-480.0,0.00019287,2]
[373575662,1753049454511,-480.0,0.00019287,2]
[373575663,1753049454520,-480.0,0.00019287,2]
[373575664,1753049454530,-849.56,0.00019287,2]
[373575665,1753049454539,-480.0,0.00019287,2]
[373575666,1753049454549,-480.0,0.00019287,2]
[373575667,1753049454559,-480.0,0.00019287,2]
[373575668,1753049454568,-480.0,0.00019287,2]
[373575669,1753049454578,-259.374226,0.00019287,2]
[373575670,1753049454588,-480.0,0.00019287,2]
[373575671,1753049454597,-555.05,0.00019287,2]
[373575672,1753049454607,-480.0,0.00019287,2]
[373575673,1753049454618,-710.19,0.00019287,2]
[373575674,1753049454628,-480.0,0.00019287,2]
[373575675,1753049454638,-480.0,0.00019287,2]
[373575676,1753049454648,-480.0,0.00019287,2]
[373575677,1753049454658,-1216.02,0.00019287,2]
[373575678,1753049454667,-480.0,0.00019287,2]
[373575679,1753049454677,-480.0,0.00019287,2]
[373575680,1753049454687,-480.0,0.00019287,2]
[373575681,1753049454697,-480.0,0.00019287,2]
[373575682,1753049454707,-480.0,0.00019287,2]
[373575683,1753049454718,-480.0,0.00019287,2]
[373575684,1753049454728,-492.58,0.00019287,2]
[373575685,1753049454738,-519.08,0.00019287,2]
[373575686,1753049454750,-4732.91,0.00019287,2]
[373575687,1753049454760,-3179.74,0.00019287,2]
[373575688,1753049454771,-480.0,0.00019287,2]
[373575689,1753049454780,-460.0,0.00019287,2]
[373575690,1753049454790,-480.0,0.00019287,2]
[373575691,1753049454800,-1233.47,0.00019287,2]
[373575692,1753049454810,-593.3,0.00019287,2]
[373575693,1753049454820,-480.0,0.00019287,2]
[373575694,1753049454830,-480.0,0.00019287,2]
[373575695,1753049454841,-480.0,0.00019287,2]
[373575696,1753049454851,-480.0,0.00019287,2]
[373575697,1753049454861,-480.0,0.00019287,2]
[373575698,1753049454871,-931.07,0.00019287,2]
[373575699,1753049454880,-480.0,0.00019287,2]
[373575700,1753049454891,-480.0,0.00019287,2]
[373575701,1753049454900,-480.0,0.00019287,2]
[373575702,1753049454910,-480.0,0.00019287,2]
[373575703,1753049454920,-749.33,0.00019287,2]
[373575704,1753049454930,-635.68,0.00019287,2]
[373575705,1753049454944,-848.45,0.00019287,2]
[373575706,1753049454955,-906.58,0.00019287,2]
[373575707,1753049454965,-480.0,0.00019287,2]
[373575708,1753049454975,-480.0,0.00019287,2]
[373575709,1753049454986,-480.0,0.00019287,2]
[373575710,1753049455000,-480.0,0.00019287,2]
[373575711,1753049455010,-480.0,0.00019287,2]
[373575712,1753049455021,-480.0,0.00019287,2]
[373575713,1753049455031,-480.0,0.00019287,2]
[373575714,1753049455042,-601.18,0.00019287,2]
[373575715,1753049455052,-480.0,0.00019287,2]
[373575716,1753049455062,-480.0,0.00019287,2]
[373575717,1753049455073,-480.0,0.00019287,2]
[373575718,1753049455083,-480.0,0.00019287,2]
[373575719,1753049455094,-480.0,0.00019287,2]
[373575720,1753049455104,-480.0,0.00019287,2]
[373575721,1753049455115,-501.79,0.00019287,2]
[373575722,1753049455125,-480.0,0.00019287,2]
[373575723,1753049455135,-500.0,0.00019287,2]
[373575724,1753049455145,-480.0,0.00019287,2]
[373575725,1753049455155,-532.89,0.00019287,2]
[373575726,1753049455166,-480.0,0.00019287,2]
[373575727,1753049455176,-363.47623034,0.00019287,2]
[373575728,1753049455187,-480.0,0.00019287,2]
[373575729,1753049455196,-1145.21,0.00019287,2]
[373575730,1753049455207,-1535.11,0.00019287,2]
[373575731,1753049455217,-806.96,0.00019287,2]
[373575732,1753049455227,-480.0,0.00019287,2]
[373575733,1753049455237,-252.90094113,0.00019287,2]
[373575734,1753049455249,-480.0,0.00019287,2]
[373575735,1753049455259,-480.0,0.00019287,2]
[373575736,1753049455268,-1434.7,0.00019287,2]
[373575737,1753049455279,-505.25,0.00019287,2]
[373575738,1753049455289,-480.0,0.00019287,2]
[373575739,1753049455299,-511.14,0.00019287,2]
[373575740,1753049455309,-1566.09,0.00019287,2]
[373575741,1753049455319,-480.0,0.00019287,2]
[373575742,1753049455328,-961.38,0.00019287,2]
[373575743,1753049455339,-891.9,0.00019287,2]
[373575744,1753049455349,-4380.82,0.00019287,2]
[373575745,1753049455359,-480.0,0.00019287,2]
[373575746,1753049455368,-480.0,0.00019287,2]
[373575747,1753049455378,-591.58,0.00019287,2]
[373575748,1753049455388,-480.0,0.00019287,2]
[373575749,1753049455398,-480.0,0.00019287,2]
[373575750,1753049455408,-480.0,0.00019287,2]
[373575751,1753049455418,-480.0,0.00019287,2]
[373575752,1753049455429,-551.01,0.00019287,2]
[373575753,1753049455439,-480.0,0.00019287,2]
[373575754,1753049455449,-480.0,0.00019287,2]
[373575755,1753049455459,-1894.01,0.00019287,2]
[373575756,1753049455470,-5396.2,0.00019287,2]
[373575757,1753049455482,-480.0,0.00019287,2]
[373575758,1753049455803,-480.0,0.00019287,2]
[373575759,1753049455813,-480.0,0.00019287,2]
[373575760,1753049455822,-460.0,0.00019287,2]
[373575761,1753049455831,-1455.25,0.00019287,2]
[373575762,1753049455841,-151.0,0.00019287,2]
[373575763,1753049455850,-750.94,0.00019287,2]
[373575764,1753049455859,-151.0,0.00019287,2]
[373575765,1753049455868,-244.07533692,0.00019287,2]
[373575766,1753049455877,-555.10136941,0.00019287,2]
[373575767,1753049455887,-151.0,0.00019287,2]
[373575768,1753049455896,-151.0,0.00019287,2]
[373575769,1753049455905,-151.0,0.00019287,2]
[373575770,1753049455914,-151.0,0.00019287,2]
[373575771,1753049455923,-151.0,0.00019287,2]
[373575772,1753049455933,-1113.94,0.00019287,2]
[373575773,1753049455947,-480.0,0.00019287,2]
[373575774,1753049455956,-151.0,0.00019287,2]
[373575775,1753049455965,-460.0,0.00019287,2]
[373575776,1753049455975,-480.0,0.00019287,2]
[373575777,1753049455985,-564.97,0.00019287,2]
[373575778,1753049455997,-480.0,0.00019287,2]
[373575779,1753049456007,-480.0,0.00019287,2]
[373575780,1753049456016,-480.0,0.00019287,2]
[373575781,1753049456026,-772.25,0.00019287,2]
[373575782,1753049456035,-849.49,0.00019287,2]
[373575783,1753049456044,-480.0,0.00019287,2]
[373575784,1753049456054,-480.0,0.00019287,2]
[373575785,1753049456063,-480.0,0.00019287,2]
[373575786,1753049456072,-151.0,0.00019287,2]
[373575787,1753049456082,-151.0,0.00019287,2]
[373575788,1753049456091,-151.0,0.00019287,2]
[373575789,1753049456101,-480.0,0.00019287,2]
[373575790,1753049456111,-954.07,0.00019287,2]
[373575791,1753049456121,-151.0,0.00019287,2]
[373575792,1753049456131,-275.25427565,0.00019287,2]
[373575793,1753049456140,-1847.64,0.00019287,2]
[373575794,1753049456150,-216.72627221,0.00019287,2]
[373575795,1753049457776,-381.24,0.00018286,2]
[373575796,1753049457787,-658.3702645,0.00019178,2]
[373575797,1753049457798,-2080.0,0.00019178,2]
[373575798,1753049457810,-13193.37670962,0.00019178,2]
[373575799,1753049457834,-7707.3119146,0.00019178,2]
[373575800,1753049458013,-998.64863807,0.00019178,2]
[373575801,1753049458025,-1060.65349437,0.00019178,2]
[373575802,1753049458036,-4809.6280962,0.00019178,2]
[373575803,1753049458047,-1064.39688357,0.00019178,2]
[373575804,1753049458445,-31599.62127654,0.00019178,2]
[373575805,1753049458461,-1070.78585774,0.00019178,2]
[373575806,1753049458680,-2081.52895376,0.00019178,2]
[373575807,1753049458691,-664.79978338,0.00019178,2]
[373575808,1753049459057,-889.0,0.00019094,2]
[373575809,1753049459067,-15949.745786,0.00019178,2]
[373575810,1753049459079,-909.57869232,0.00019178,2]
[373575811,1753049459091,-341.04,0.00019178,2]
[373575812,1753049459103,-1088.28493034,0.00019178,2]
[373575813,1753049459115,-6350.89216362,0.00019178,2]
[373575814,1753049459421,-35211.12861904,0.00019178,2]
[373575815,1753049459432,-13132.28625679,0.00019178,2]
[373575816,1753049459443,-880.12925045,0.00019178,2]
[373575817,1753049459454,-506.7,0.00019178,2]
[373575818,1753049459466,-4349.65915108,0.00019178,2]
[373575819,1753049459477,-867.17500425,0.00019178,2]
[373575820,1753049459633,-287.98366962,0.00019178,2]
[373575821,1753049460261,164.0,0.00015945,3]
[373575822,1753049599987,201.09,0.00013699,2]
[373575826,1753049889923,473.02,0.00024836,120]
[373575832,1753050448649,507.0,0.00015946,2]
[373575834,1753050556083,-4069.41550043,0.00016255,2]
[373575835,1753050561147,-853.72561238,0.00016255,2]
[373575836,1753050561167,-1000.0,0.0001655,2]
[373575837,1753050561188,-195.31580479,0.00016846,2]
[373575838,1753050561208,-208.0,0.00016999,2]
[373575839,1753050561230,-1764.14748166,0.00017,2]
[373575840,1753050563126,-4986.643858,0.00017,2]
[373575841,1753050621944,191.03,0.00013699,2]
[373575870,1753050632107,-658.6229296,0.00016999,2]
[373575871,1753050632119,-442.62239,0.00016999,2]
[373575872,1753050632131,-98.7546804,0.00016999,2]
[373575873,1753050632140,-329.16753857,0.00017,2]
[373575880,1753050637913,-2166.37608666,0.00017,2]
[373575881,1753050637924,-5349.24200975,0.00017,2]
[373575882,1753050637936,-9616.06621539,0.00017,2]
[373575883,1753050637953,-3314.42489097,0.00017,2]
[373575884,1753050637964,-2554.93211575,0.00017,2]
[373575885,1753050637988,-352.32850164,0.00017,2]
[373575886,1753050638200,-405.17512303,0.00017,2]
[373575887,1753050638217,-18621.98664,0.00017,2]
[373575888,1753050638228,-266.60001,0.00017,2]
[373575889,1753050638239,-280.67238318,0.00017,2]
[373575890,1753050638259,-2185.45089078,0.00017,2]
[373575891,1753050638271,-1476.42,0.00017,2]
[373575892,1753050638283,-8318.70685954,0.00017,2]
[373575893,1753050638295,-5366.19034405,0.00017,2]
[373575894,1753050638304,-1801.30444202,0.00017,2]
[373575895,1753050638316,-1546.02694206,0.00017,2]
[373575896,1753050638327,-2343.02301613,0.00017,2]
[373575897,1753050638338,-256.82799775,0.00017,2]
[373575898,1753050638359,-19898.91831001,0.00017,2]
[373575899,1753050638384,-3014.6959913,0.00017,2]
[373575900,1753050638393,-150.0,0.00017334,2]
[373575901,1753050638401,-150.0,0.00017334,2]
[373575902,1753050638411,-150.0,0.00017334,2]
[373575903,1753050638421,-373.0,0.000175,2]
[373575904,1753050638431,-506.77,0.0001758,2]
[373575905,1753050638443,-272.27,0.00017628,2]
[373575906,1753050638453,-200.0,0.00017663,2]
[373575907,1753050638462,-154.32,0.00017665,2]
[373575908,1753050638472,-154.32,0.00017701,2]
[373575909,1753050638481,-449.98,0.00017702,2]
[373575910,1753050638491,-154.32,0.00017736,2]
[373575911,1753050638500,-1000.0,0.00017746,2]
[373575912,1753050638510,-154.32,0.00017771,2]
[373575913,1753050638519,-487.34,0.00017772,2]
[373575914,1753050638531,-154.32,0.00017807,2]
[373575915,1753050638540,-154.32,0.00017842,2]
[373575917,1753050638550,-227.97,0.00017869,2]
[373575919,1753050638559,-250.0,0.00017881,2]
[373575921,1753050638569,-1000.0,0.00017881,2]
[373575923,1753050638579,-666.0,0.00017897,2]
[373575924,1753050638588,-217.63660583,0.000179,2]
[373575926,1753050638598,-507.0,0.00017948,4]
[373575928,1753050638607,-166.35,0.0001798,2]
[373575930,1753050638618,-250.44,0.0001802,2]
[373575932,1753050638627,-430.59,0.00018042,2]
[373575934,1753050638636,-266.68840287,0.00018063,2]
[373575936,1753050638649,-206.33159713,0.00018063,2]
[373575938,1753050638659,-472.52,0.00018076,2]
[373575940,1753050638669,-167.01,0.00018129,2]
[373575942,1753050638678,-179.64044847,0.00018158,2]
[373575946,1753050638708,-209.44955153,0.00018158,2]
[373575948,1753050638718,-2802.64,0.00018172,2]
[373575949,1753050638727,-490.94096642,0.00018262,2]
[373575953,1753050638754,-113.37903358,0.00018262,2]
[373575957,1753050638763,-150.0,0.00018297,2]
[373575959,1753050638773,-201.3,0.00018329,2]
[373575961,1753050638783,-3118.57552559,0.00018394,2]
[373575977,1753050638931,-4024.28047441,0.00018394,2]
[373575979,1753050638944,-231.28369723,0.00018394,2]
[373575981,1753050638953,-217.6366058,0.000184,2]
[373575983,1753050638962,-160.0,0.00018522,2]
[373575985,1753050638972,-499.99,0.00018533,2]
[373575986,1753050638981,-231.21,0.00018533,2]
[373575988,1753050638991,-299.99,0.00018533,4]
[373575990,1753050639001,-150.99,0.00018533,2]
[373575992,1753050639011,-9411.16,0.00018533,2]
[373575994,1753050639020,-762.98,0.00018533,2]
[373575996,1753050639029,-179.93,0.00018541,2]
[373575998,1753050639039,-1245.97,0.00018541,2]
[373576000,1753050639048,-171.37,0.00018542,2]
[373576002,1753050639057,-1083.0,0.00018548,14]
[373576004,1753050639066,-11819.56950929,0.00018565,2]
[373576006,1753050639076,-449.98,0.00018587,2]
[373576008,1753050639085,-300.0,0.000186,6]
[373576009,1753050639094,-929.24375326,0.00018659,2]
[373576012,1753050639106,-750.75624674,0.00018659,2]
[373576014,1753050639115,-600.0,0.000187,6]
[373576016,1753050639124,-508.0,0.00018753,2]
[373576017,1753050639133,-366.0,0.0001878,2]
[373576019,1753050639142,-167.97,0.00018788,2]
[373576021,1753050639152,-1172.05,0.000188,2]
[373576023,1753050639161,-900.0,0.000188,6]
[373576025,1753050639170,-1775.89872125,0.0001887,2]
[373576027,1753050639180,-295.32928898,0.00018875,2]
[373576029,1753050639189,-2246.33298215,0.00018878,2]
[373576031,1753050639201,-1775.89872125,0.00018895,2]
[373576033,1753050639210,-1200.0,0.000189,6]
[373576035,1753050639219,-217.6366058,0.000189,2]
[373576037,1753050639229,-267.53817461,0.00018907,2]
[373576039,1753050639239,-295.32928898,0.00018914,2]
[373576041,1753050639249,-5003.91583099,0.00018916,2]
[373576043,1753050639259,-1597.20125488,0.00018918,2]
[373576045,1753050639268,-267.53817461,0.00018919,2]
[373576047,1753050639277,-2246.33298215,0.00018924,2]
[373576049,1753050639287,-2246.33298215,0.00018927,2]
[373576051,1753050639296,-1597.20125488,0.00018928,2]
[373576053,1753050639306,-21.03749063,0.00018929,2]
[373576060,1753050639361,-246.50068398,0.00018929,2]
[373576062,1753050639370,-7407.141672,0.00018942,2]
[373576064,1753050639380,-691.84962414,0.00018947,2]
[373576066,1753050639390,-691.84962414,0.00018957,2]
[373576068,1753050639399,-522.99426367,0.00018958,2]
[373576076,1753050639478,-701.88315539,0.00018958,2]
[373576121,1753050639892,-372.32383582,0.00018958,2]
[373576123,1753050639902,-691.84962414,0.00018969,2]
[373576125,1753050639911,-627.60243198,0.00018972,2]
[373576127,1753050639923,-187.31756802,0.00018972,2]
[373576129,1753050639932,-295.32928898,0.00018975,2]
[373576131,1753050639945,-508.0,0.00018988,2]
[373576133,1753050639956,-39.793143,0.00018997,2]
[373576135,1753050639973,-1736.10557825,0.00018997,2]
[373576137,1753050639982,-11.59119745,0.00019007,2]
[373576154,1753050640140,-4992.32463354,0.00019007,2]
[373576156,1753050640150,-201.3,0.00019016,2]
[373576159,1753050640160,-508.0,0.00019016,2]
[373576161,1753050640171,-508.0,0.00019051,2]
[373576163,1753050640180,-839.31074571,0.00019074,2]
[373576165,1753050640190,-210.86573235,0.00019074,2]
[373576167,1753050640203,-160.0,0.00019074,2]
[373576168,1753050640212,-476.8747822,0.00019074,2]
[373576170,1753050640221,-1000.0,0.00019077,2]
[373576173,1753050640230,-152.52215103,0.00019078,2]
[373576175,1753050640240,-1402.49085918,0.00019078,2]
[373576177,1753050640250,-172.08974397,0.00019078,2]
[373576178,1753050640258,-12608.4797,0.00019078,2]
[373576180,1753050640267,-5000.0,0.00019078,2]
[373576182,1753050640277,-5602.40345,0.0001909,2]
[373576184,1753050640286,-152.522151,0.00019097,2]
[373576186,1753050640295,-5003.91583099,0.00019098,2]
[373576188,1753050640304,-504.0,0.000191,3]
[373576190,1753050640314,-1181.0,0.000191,2]
[373576192,1753050640323,-152.522151,0.00019117,2]
[373576194,1753050640333,-152.522151,0.00019136,2]
[373576196,1753050640343,-1402.49085916,0.00019151,2]
[373576198,1753050640353,-152.522151,0.00019155,2]
[373576200,1753050640363,-435.99,0.00019168,2]
[373576202,1753050640374,-152.522151,0.00019174,2]
[373576205,1753050640386,-290.72918171,0.00019177,2]
[373576206,1753050640395,-422.17,0.00019177,2]
[373576208,1753050640405,-424.05,0.00019177,2]
[373576210,1753050640413,-432.0,0.00019177,2]
[373576212,1753050640423,-508.0,0.00019177,2]
[373576214,1753050640432,-429.93,0.00019178,2]
[373576216,1753050640441,-461.32472405,0.00019178,2]
[373576218,1753050640454,-461.47487606,0.00019178,2]
[373576220,1753050640464,-480.0,0.00019178,2]
[373576221,1753050640473,-151.0,0.00019178,2]
[373576223,1753050640483,-168.792353,0.00019178,2]
[373576225,1753050640492,-500.0,0.00019178,2]
[373576227,1753050640501,-500.0,0.00019178,2]
[373576229,1753050640511,-151.0,0.00019178,2]
[373576231,1753050640520,-151.0,0.00019178,2]
[373576233,1753050640531,-339.714842,0.00019178,2]
[373576235,1753050640540,-480.0,0.00019178,2]
[373576237,1753050640551,-339.714842,0.00019178,2]
[373576239,1753050640560,-151.0,0.00019178,2]
[373576241,1753050640569,-151.0,0.00019178,2]
[373576243,1753050640579,-480.0,0.00019178,2]
[373576245,1753050640588,-151.0,0.00019178,2]
[373576247,1753050640597,-480.0,0.00019178,2]
[373576249,1753050640607,-480.0,0.00019178,2]
[373576251,1753050640616,-480.0,0.00019178,2]
[373576252,1753050640625,-480.0,0.00019178,2]